bitfinex-derivatives/quotes_ETHF0:USTF0_20260203
["timestamp","ask_amount","ask_price","bid_price","bid_amount"]
[1770151077391,0.00394391,2286.1,2284.7,2.44658285]
[1770151077588,0.21899,2285.8,2284.7,2.44658285]
[1770151077787,0.21899,2285.8,2284.9,1.21617942]
[1770151077991,0.21899,2285.8,2285.0,1.21617942]
[1770151078189,0.21903,2285.5,2284.7,2.44658285]
[1770151078694,0.21902,2285.5,2284.7,2.44658285]
[1770151078895,0.21902,2285.5,2284.9,1.21617942]
[1770151079294,0.21898,2285.9,2285.3,1.21617942]
[1770151079494,0.00394391,2286.1,2284.7,2.44658285]
[1770151079697,0.63514851,2286.1,2284.2,2.44658285]
[1770151079889,0.63514851,2286.1,2283.6,0.22196456]
[1770151079890,0.63514851,2286.1,2283.7,2.44658285]
[1770151080094,0.21902,2285.5,2283.9,2.44658285]
[1770151080290,0.63514851,2286.1,2284.2,2.44658285]
[1770151080490,0.63514851,2286.1,2283.6,0.22196456]
[1770151080491,0.21907,2285.0,2283.7,2.44658285]
[1770151080695,4.377,2285.7,2284.2,2.44658285]
[1770151080696,4.596,2285.7,2284.2,2.44658285]
[1770151080894,0.21901,2285.6,2284.6,2.44658285]
[1770151081200,4.377,2285.7,2284.6,2.44658285]
[1770151081396,4.377,2285.7,2283.7,2.44658285]
[1770151081593,0.21906,2285.1,2283.7,2.44658285]
[1770151081797,0.21904,2285.3,2283.8,2.44658285]
[1770151081991,4.377,2285.7,2283.8,2.44658285]
[1770151082194,4.377,2285.7,2284.5,2.44658285]
[1770151082390,0.00394391,2286.1,2285.1,2.44658285]
[1770151082594,4.378,2286.7,2285.7,0.75823942]
[1770151082795,4.378,2286.7,2285.5,2.44658285]
[1770151082998,0.21896,2286.1,2285.1,2.44658285]
[1770151083496,0.21898,2285.9,2285.2,0.75823942]
[1770151083696,0.22248164,2285.9,2285.2,0.00443685]
[1770151083896,0.22248164,2285.9,2285.3,0.75823942]
[1770151084297,0.22248164,2285.9,2285.6,0.75823942]
[1770151084497,0.22248164,2285.9,2285.5,0.75823942]
[1770151084699,0.21887,2287.1,2285.8,0.75823942]
[1770151084896,0.2189,2286.7,2285.6,2.44658285]
[1770151085098,0.21895,2286.2,2285.6,2.44658285]
[1770151085293,4.378,2286.8,2285.2,2.4510197]
[1770151085500,0.82298516,2287.6,2285.3,2.44658285]
[1770151085695,0.21885,2287.3,2285.3,2.44658285]
[1770151085896,0.21886,2287.2,2285.9,0.75823942]
[1770151086100,0.21886,2287.2,2286.0,2.44658285]
[1770151086301,0.21886,2287.2,2286.1,2.44658285]
[1770151086804,0.21887,2287.1,2286.4,0.75823942]
[1770151087000,0.00492292,2287.6,2286.5,2.44658285]
[1770151087199,0.83160673,2287.6,2285.8,2.44658285]
[1770151087498,0.21881,2287.8,2286.4,2.44658285]
[1770151087704,0.83160673,2288.5,2286.4,2.44658285]
[1770151087896,0.21877,2288.1,2286.6,2.44658285]
[1770151088201,0.22428375,2288.1,2286.6,2.44658285]
[1770151088397,0.21894,2286.4,2285.2,0.00443685]
[1770151088698,0.21887,2287.1,2285.2,0.00443685]
[1770151089005,1.35258594,2287.6,2285.5,0.75823942]
[1770151089303,1.35258594,2286.8,2285.3,0.75823942]
[1770151089500,1.35258594,2286.8,2285.2,0.00443685]
[1770151089700,1.35566733,2286.8,2285.2,0.76267627]
[1770151090002,0.21892,2286.5,2285.5,0.75823942]
[1770151090295,0.21892,2286.5,2285.3,0.75823942]
[1770151090497,0.21892,2286.5,2285.5,0.75823942]
[1770151090697,0.21895,2286.2,2285.3,2.44658285]
[1770151090999,0.2189,2286.7,2285.6,0.75823942]
[1770151091201,0.2189,2286.7,2285.8,2.44658285]
[1770151091400,0.2189,2286.7,2285.8,3.20482227]
[1770151091601,0.2189,2286.7,2286.1,0.75823942]
[1770151091798,1.36440888,2286.1,2284.4,2.44658285]
[1770151092298,0.21897,2286.0,2284.9,2.75989912]
[1770151092503,4.378,2286.6,2284.9,2.44658285]
[1770151092801,4.378,2286.6,2285.4,2.75989912]
[1770151093197,0.00308139,2286.8,2285.9,0.31331627]
[1770151093400,0.21885,2287.3,2286.4,2.44658285]
[1770151093603,0.21884,2287.4,2286.4,2.44658285]
[1770151093901,4.378,2287.7,2286.4,2.44658285]
[1770151094114,4.378,2287.7,2286.7,0.31331627]
[1770151094304,0.21882,2287.6,2286.4,2.44658285]
[1770151094498,0.35599302,2288.9,2286.7,2.44658285]
[1770151094499,0.21875,2288.3,2286.7,2.44658285]
[1770151094704,0.21875,2288.3,2286.9,2.44658285]
[1770151094906,4.5967,2288.9,2287.4,2.44658285]
[1770151095304,4.5967,2288.9,2287.8,2.44658285]
[1770151095498,0.21874,2288.5,2286.7,2.75989912]
[1770151095702,0.21874,2288.4,2287.2,2.44658285]
[1770151095912,0.21872,2288.6,2287.2,2.44658285]
[1770151096202,0.21872,2288.6,2287.6,2.44658285]
[1770151097206,0.21872,2288.6,2288.1,0.31331627]
[1770151097501,0.21872,2288.6,2288.1,0.00358303]
[1770151097697,4.38247879,2288.9,2288.1,0.00358303]
[1770151098302,4.38247879,2288.9,2287.5,2.44658285]
[1770151098503,1.39262252,2288.8,2287.0,2.44658285]
[1770151098702,4.60116879,2288.9,2287.0,2.44658285]
[1770151099300,0.21871,2288.7,2287.0,2.45175833]
[1770151099811,4.377,2290.0,2287.8,2.44658285]
[1770151100107,1.39710131,2289.5,2287.8,2.44658285]
[1770151100711,0.21868,2289.0,2287.8,2.44658285]
[1770151101010,0.00565765,2289.5,2287.8,2.44658285]
[1770151101205,0.21865,2289.3,2287.8,2.44658285]
[1770151101406,0.00565765,2289.5,2287.8,2.66537285]
[1770151101606,0.21862,2289.7,2287.9,2.38991642]
[1770151101811,0.21864,2289.5,2287.9,2.60870642]
[1770151102109,4.377,2290.0,2287.9,2.38991642]
[1770151102110,0.21869,2288.9,2287.9,2.38991642]
[1770151102713,0.22354435,2288.9,2287.9,2.38991642]
[1770151103310,0.21873,2288.6,2287.9,2.38991642]
[1770151103607,0.00485435,2288.9,2287.4,2.38991642]
[1770151103811,0.21876,2288.2,2287.4,2.38991642]
[1770151104223,4.5947,2288.8,2287.4,2.38991642]
[1770151104411,0.21872,2288.6,2287.4,2.38991642]
[1770151105210,4.376,2288.8,2287.4,2.38991642]
[1770151105414,0.00485435,2288.9,2287.4,2.38991642]
[1770151105614,4.375,2289.8,2287.4,2.38991642]
[1770151105811,1.40208941,2290.6,2288.6,2.38991642]
[1770151106111,1.40208941,2291.0,2289.1,2.38991642]
[1770151106312,1.40208941,2290.8,2289.1,2.38991642]
[1770151106710,0.21858,2290.1,2289.1,2.39428764]
[1770151107109,0.21859,2290.1,2289.1,2.39428764]
[1770151107510,0.21859,2290.0,2289.1,2.39428764]
[1770151108107,0.21855,2290.5,2289.1,2.39428764]
[1770151108307,0.00415458,2290.8,2289.1,2.39428764]
[1770151108516,1.38618193,2290.8,2289.1,2.39428764]
[1770151108711,0.21855,2290.4,2289.1,2.39428764]
[1770151109610,0.00415458,2290.8,2289.1,2.39428764]
[1770151109818,0.21843,2291.6,2289.6,2.38991642]
[1770151110118,0.21844,2291.5,2289.6,2.60853642]
[1770151110319,0.21848,2291.2,2289.6,2.38991642]
[1770151110614,4.374,2292.2,2290.1,2.38991642]
[1770151110813,4.59639445,2292.2,2290.3,2.38991642]
[1770151111010,0.00401445,2292.2,2290.7,2.38991642]
[1770151111209,0.21833,2292.7,2290.6,2.79057183]
[1770151111210,0.21835,2292.5,2290.9,2.38991642]
[1770151111414,0.21837,2292.3,2290.9,2.38991642]
[1770151111615,1.38443585,2292.7,2290.9,2.38991642]
[1770151111814,0.21843,2291.6,2290.9,2.38991642]
[1770151112018,1.38443585,2292.4,2290.5,2.38991642]
[1770151112019,0.21845,2291.5,2290.5,2.38991642]
[1770151112216,0.22172057,2291.5,2290.5,2.39304591]
[1770151112715,0.21846,2291.3,2290.5,2.39304591]
[1770151113419,0.22172057,2291.5,2290.5,0.00312949]
[1770151113719,0.21845,2291.4,2290.5,0.00312949]
[1770151115220,0.21847,2291.3,2290.5,0.00312949]
[1770151115819,0.00327057,2291.5,2289.8,2.38991642]
[1770151115820,0.21851,2290.8,2289.8,2.38991642]
[1770151116022,0.21846,2291.4,2289.8,2.38991642]
[1770151116220,0.00327057,2291.5,2289.8,2.60851642]
[1770151116518,4.372,2292.8,2291.0,2.38991642]
[1770151117123,0.21837,2292.3,2291.3,2.38991642]
[1770151117514,0.00511741,2292.3,2291.3,2.39383027]
[1770151117915,1.54842517,2292.3,2291.3,0.00391385]
[1770151118118,1.54842517,2292.3,2290.8,2.38991642]
[1770151118320,1.54842517,2292.3,2290.2,2.38991642]
[1770151118515,0.21845,2291.5,2290.2,2.38991642]
[1770151118819,0.21847,2291.3,2290.2,2.38991642]
[1770151119019,1.5842276,2291.5,2289.8,2.38991642]
[1770151119320,0.21851,2290.9,2289.8,2.39453015]
[1770151119519,1.5842276,2291.1,2289.8,0.00461373]
[1770151119716,0.21853,2290.6,2289.8,0.00461373]
[1770151119918,0.22234334,2290.6,2289.8,2.39453015]
[1770151120120,0.4372,2296.4,2289.8,2.39453015]
[1770151120121,0.21847,2291.2,2289.8,2.39453015]
[1770151120326,4.371,2292.1,2290.1,0.21857]
[1770151120528,1.5709937,2292.0,2289.8,2.39453015]
[1770151120822,0.21852,2290.8,2289.8,2.39453015]
[1770151121021,0.21854,2290.5,2289.8,0.00461373]
[1770151121226,0.22311092,2290.5,2289.8,0.00461373]
[1770151121626,0.00457092,2290.5,2289.8,2.39453015]
[1770151122221,4.371,2290.9,2289.8,2.39453015]
[1770151123226,4.37495957,2290.9,2289.8,2.39453015]
[1770151123826,0.21843,2291.7,2289.8,2.39453015]
[1770151124229,0.21843,2291.7,2290.0,2.38991642]
[1770151124525,4.37,2291.9,2290.0,2.38991642]
[1770151124526,4.37,2291.9,2290.2,0.21856]
[1770151124834,4.37495564,2291.9,2290.3,2.38991642]
[1770151125226,0.21842,2291.8,2290.3,2.38991642]
[1770151125632,0.21842,2291.7,2290.3,2.38991642]
[1770151125930,4.37495564,2291.9,2290.3,2.38991642]
[1770151126129,1.59049157,2292.8,2291.2,2.38991642]
[1770151126323,1.66083342,2293.1,2291.2,2.38991642]
[1770151126526,1.66083342,2293.1,2291.4,0.21845]
[1770151126830,0.21831,2293.0,2291.5,2.38991642]
[1770151127026,0.21832,2292.8,2291.5,2.38991642]
[1770151127225,0.21832,2292.8,2291.5,2.39385168]
[1770151127627,0.21835,2292.5,2291.5,2.39385168]
[1770151127934,0.22322688,2293.0,2291.5,2.39385168]
[1770151128633,0.22322688,2293.0,2291.5,2.61229168]
[1770151129427,0.21825,2293.6,2291.5,0.00393526]
[1770151129627,4.369,2294.5,2293.0,2.49992279]
[1770151129827,0.21814,2294.7,2293.0,5.29049462]
[1770151130026,34.956,2295.7,2293.2,2.49992279]
[1770151130225,4.369,2295.7,2293.5,2.49992279]
[1770151130424,0.21811,2295.0,2293.5,2.50500988]
[1770151130736,0.21807,2295.5,2293.7,2.71537931]
[1770151130929,2.79057183,2296.8,2293.5,0.00508709]
[1770151130930,4.369,2296.7,2294.2,2.79057183]
[1770151131135,4.369,2296.7,2295.0,2.49714931]
[1770151131335,0.21788,2297.5,2295.5,2.49714931]
[1770151131630,2.79057183,2297.5,2295.5,2.49714931]
[1770151131826,2.79057183,2297.5,2294.2,2.49714931]
[1770151132032,0.21805,2295.7,2294.2,2.50204417]
[1770151132226,0.00357093,2295.7,2294.2,2.50204417]
[1770151132731,0.00357093,2295.7,2294.2,1.50204417]
[1770151132926,4.368,2296.4,2294.2,1.50204417]
[1770151133326,0.83749875,2296.3,2294.2,1.50204417]
[1770151133734,0.83749875,2296.2,2294.2,1.50204417]
[1770151134531,1.17468557,2296.6,2294.3,0.21818]
[1770151134737,0.95672557,2297.0,2294.4,2.45268427]
[1770151134934,0.21802,2296.0,2294.4,2.45268427]
[1770151136427,0.96540176,2296.7,2294.4,2.45268427]
[1770151136428,0.21796,2296.6,2294.4,2.45268427]
[1770151136627,0.21796,2296.6,2294.6,2.45268427]
[1770151136831,0.00520852,2297.0,2295.2,2.45268427]
[1770151137133,0.2179,2297.3,2295.4,2.45268427]
[1770151137430,0.9558188,2298.7,2295.6,2.45268427]
[1770151137626,1.1737188,2298.5,2296.4,2.45268427]
[1770151138232,0.21786,2297.7,2296.4,2.45753427]
[1770151138537,1.19826921,2297.8,2296.4,2.45753427]
[1770151139537,4.364,2298.0,2296.4,2.45753427]
[1770151139734,0.00461697,2298.5,2296.4,2.45753427]
[1770151139940,0.00461697,2298.5,2296.7,2.45268427]
[1770151140134,0.21785,2297.8,2296.7,2.45268427]
[1770151140341,1.18357746,2298.1,2296.4,0.00485]
[1770151140537,0.00461697,2298.5,2296.4,2.45753427]
[1770151140738,0.2178,2298.3,2296.9,2.45268427]
[1770151140937,0.21779,2298.4,2296.9,2.45268427]
[1770151141145,1.18819443,2298.5,2296.9,2.45268427]
[1770151141439,0.21783,2298.0,2296.4,0.00485]
[1770151141740,1.65208746,2298.4,2296.4,0.00485]
[1770151141938,1.65208746,2297.9,2296.4,0.00485]
[1770151142144,1.65208746,2297.5,2294.6,4.362]
[1770151142343,4.362,2297.8,2295.3,0.21807]
[1770151142841,1.6560724,2297.3,2294.6,4.362]
[1770151143145,1.6560724,2296.9,2294.6,4.36525237]
[1770151143340,1.6560724,2296.7,2294.7,2.45268427]
[1770151143545,1.66060881,2296.7,2294.7,2.45268427]
[1770151143948,0.21801,2296.1,2294.7,2.45268427]
[1770151144444,1.63876772,2296.0,2294.6,0.00325237]
[1770151144646,0.21804,2295.8,2294.6,0.00325237]
[1770151144847,1.63876772,2295.6,2294.6,0.00325237]
[1770151145044,0.21805,2295.7,2294.2,2.45268427]
[1770151145239,1.63876772,2296.4,2294.2,2.45268427]
[1770151145440,0.00453641,2296.7,2294.7,2.45268427]
[1770151145745,0.00453641,2296.7,2293.7,2.45268427]
[1770151145746,1.64330413,2296.7,2293.7,2.45268427]
[1770151145944,0.2181,2295.2,2293.7,2.45589085]
[1770151146240,0.2181,2295.1,2293.7,2.45589085]
[1770151146445,1.63876772,2295.6,2293.7,2.45589085]
[1770151146647,0.21812,2294.9,2293.7,2.45589085]
[1770151146843,0.21806,2295.5,2293.7,2.45589085]
[1770151147043,0.21806,2295.5,2293.8,2.45268427]
[1770151147243,4.361,2295.7,2293.8,2.45268427]
[1770151147244,1.63900847,2295.1,2293.8,2.45268427]
[1770151147441,1.63900847,2295.1,2293.7,0.00320658]
[1770151147945,1.63900847,2294.7,2293.7,0.00320658]
[1770151148148,0.00349679,2295.1,2292.9,2.45268427]
[1770151148149,1.63580189,2294.5,2292.9,2.45268427]
[1770151148346,4.361,2294.4,2292.9,2.45268427]
[1770151148546,0.21822,2293.9,2292.9,2.45268427]
[1770151149244,1.61363621,2294.3,2292.9,2.45627077]
[1770151149455,0.21823,2293.8,2292.9,2.45627077]
[1770151149651,0.21824,2293.7,2292.9,0.0035865]
[1770151150153,0.21824,2293.7,2292.9,2.45627077]
[1770151150451,0.21818,2294.3,2292.9,2.45627077]
[1770151150651,4.361,2294.4,2292.9,2.45627077]
[1770151151155,0.21822,2293.9,2292.9,2.45627077]
[1770151151554,4.361,2294.4,2292.9,2.45627077]
[1770151151752,4.57917,2294.4,2292.9,2.45627077]
[1770151151951,4.361,2294.4,2292.9,2.45627077]
[1770151152455,5.88558334,2294.4,2292.9,2.45627077]
[1770151152654,1.52458334,2294.3,2292.9,2.45627077]
[1770151152848,1.52458334,2294.3,2292.9,0.0035865]
[1770151152849,0.21824,2293.6,2292.9,0.0035865]
[1770151153253,0.21819,2294.2,2292.9,2.45627077]
[1770151154854,0.2182,2294.1,2292.9,2.45627077]
[1770151155154,4.361,2294.4,2292.9,2.45627077]
[1770151155155,1.5579659,2294.3,2292.9,2.45627077]
[1770151155354,0.05,2294.2,2292.9,2.45627077]
[1770151155557,0.21812,2294.9,2293.1,2.45268427]
[1770151155751,0.00349679,2295.1,2293.4,2.45268427]
[1770151155954,0.00349679,2295.1,2293.6,2.45268427]
[1770151156759,0.21812,2294.9,2293.6,2.45268427]
[1770151157653,0.21813,2294.8,2293.6,2.45268427]
[1770151161158,0.21817,2294.4,2293.6,2.45268427]
[1770151161360,0.21818,2294.3,2293.6,2.45268427]
[1770151161652,0.00349679,2295.1,2292.9,0.0035865]
[1770151161653,2.12538307,2294.4,2292.9,0.0035865]
[1770151161960,0.21826,2293.5,2292.9,0.0035865]
[1770151162159,4.362,2294.5,2292.9,0.0035865]
[1770151162459,0.21824,2293.7,2292.9,0.0035865]
[1770151162661,0.21825,2293.6,2292.9,0.0035865]
[1770151162864,0.21831,2293.0,2291.6,4.362]
[1770151163060,0.21831,2292.9,2291.6,4.362]
[1770151163358,0.21832,2292.8,2291.6,4.362]
[1770151163557,2.1185609,2293.6,2291.7,2.43366882]
[1770151163757,2.1185609,2294.1,2291.9,2.65206882]
[1770151163959,2.1185609,2293.9,2291.9,2.43735431]
[1770151164261,0.2183,2293.0,2291.9,2.43735431]
[1770151165062,2.14122187,2294.0,2291.9,2.65575431]
[1770151165264,0.21825,2293.5,2291.9,2.65575431]
[1770151165458,0.00499772,2294.1,2292.3,2.43366882]
[1770151166560,0.21821,2294.0,2292.3,2.65202882]
[1770151166757,0.21816,2294.5,2292.9,2.65197882]
[1770151166959,4.363,2295.5,2293.4,2.43366882]
[1770151166960,2.14237352,2295.5,2293.4,2.43366882]
[1770151167265,2.14237352,2295.5,2293.3,0.21827]
[1770151167266,2.29851454,2295.1,2292.8,2.43366882]
[1770151167566,2.29851454,2294.6,2292.8,2.43366882]
[1770151167861,2.29851454,2294.6,2293.0,2.43366882]
[1770151167862,0.21819,2294.2,2293.0,2.43366882]
[1770151168369,0.21822,2293.9,2293.0,2.43366882]
[1770151168665,0.21816,2294.5,2293.0,2.43366882]
[1770151169064,0.00491729,2294.6,2293.3,2.43366882]
[1770151169260,6.66151454,2295.5,2293.3,2.43366882]
[1770151169461,2.29851454,2295.0,2293.3,2.43366882]
[1770151169665,0.21815,2294.6,2293.3,2.43366882]
[1770151169964,0.21818,2294.4,2293.3,2.43366882]
[1770151170166,0.21811,2295.0,2293.3,2.43366882]
[1770151170464,4.58106,2295.5,2294.0,2.43366882]
[1770151170767,0.21808,2295.4,2294.0,2.43366882]
[1770151171665,2.29851454,2295.5,2294.0,2.43366882]
[1770151171860,2.29851454,2295.1,2293.2,2.43366882]
[1770151172060,2.29851454,2295.1,2293.2,2.43702451]
[1770151172061,2.29851454,2294.9,2293.2,2.43702451]
[1770151172267,0.21816,2294.5,2293.2,2.43702451]
[1770151172869,0.21817,2294.4,2293.2,2.43702451]
[1770151173773,0.21818,2294.3,2293.2,2.43702451]
[1770151174671,0.00407344,2295.1,2293.7,2.43366882]
[1770151174872,0.21804,2295.8,2294.2,2.43366882]
[1770151175171,0.21804,2295.8,2294.4,2.43366882]
[1770151175473,0.21804,2295.7,2294.4,2.43366882]
[1770151175872,0.22163239,2295.7,2294.4,2.43366882]
[1770151176370,0.21805,2295.6,2294.4,2.43366882]
[1770151176568,0.00359239,2295.7,2294.4,2.43366882]
[1770151176770,4.363,2296.6,2294.7,0.21814]
[1770151176966,0.21798,2296.4,2295.0,2.43366882]
[1770151177467,0.21799,2296.3,2295.0,2.43366882]
[1770151177973,0.22144587,2296.3,2295.0,2.43909198]
[1770151179569,2.29851454,2298.0,2295.5,2.43366882]
[1770151179766,0.21789,2297.4,2295.7,2.43366882]
[1770151179966,0.21789,2297.4,2295.8,2.43366882]
[1770151180167,0.2179,2297.3,2295.8,2.43366882]
[1770151180465,2.29851454,2297.7,2295.8,2.43366882]
[1770151180775,2.30244392,2297.3,2295.8,2.43366882]
[1770151181175,0.21794,2296.8,2295.8,2.43366882]
[1770151181574,0.21795,2296.7,2295.4,2.43366882]
[1770151181973,0.21801,2296.1,2295.0,0.00542316]
[1770151182276,2.29851454,2296.1,2295.0,0.00542316]
[1770151182569,2.51652454,2296.1,2295.0,0.00542316]
[1770151183075,2.51652454,2296.1,2294.4,2.43366882]
[1770151183076,2.29851454,2296.1,2294.4,2.43366882]
[1770151183276,2.29851454,2295.7,2293.6,0.21824]
[1770151183476,2.29851454,2296.1,2293.7,2.43366882]
[1770151183675,0.21805,2295.7,2293.7,2.43366882]
[1770151184278,0.21805,2295.7,2293.7,2.65749255]
[1770151184478,2.29851454,2296.1,2294.0,2.65186882]
[1770151184880,2.29851454,2296.5,2294.7,2.43366882]
[1770151185080,0.21797,2296.5,2294.7,2.43366882]
[1770151185280,4.361,2296.8,2294.9,2.65178882]
[1770151186575,2.29851454,2296.7,2294.9,2.43366882]
[1770151186775,0.21801,2296.1,2294.9,2.43366882]
[1770151188278,2.29851454,2296.3,2294.9,2.43366882]
[1770151188484,0.21804,2295.8,2294.9,2.43366882]
[1770151189282,2.29851454,2296.0,2294.3,2.43366882]
[1770151189586,0.21802,2296.0,2294.3,2.43366882]
[1770151189785,0.21802,2296.0,2294.1,0.21819]
[1770151189786,0.21802,2296.0,2294.5,2.43366882]
[1770151190088,0.21797,2296.5,2294.8,2.43366882]
[1770151190581,0.21798,2296.4,2294.8,2.43366882]
[1770151190983,0.21798,2296.4,2294.8,2.65179882]
[1770151191287,0.21792,2297.0,2295.3,2.28003356]
[1770151191485,0.21781,2298.2,2296.4,2.28003356]
[1770151191688,2.3781139,2298.4,2296.6,2.28003356]
[1770151191889,0.21784,2297.9,2296.6,2.28003356]
[1770151192389,0.21782,2298.1,2296.6,2.28003356]
[1770151192589,0.22251801,2298.1,2296.6,2.28502307]
[1770151193287,0.22251801,2298.1,2296.6,6.64502307]
[1770151193490,0.22251801,2298.1,2296.7,2.28003356]
[1770151194189,0.22251801,2298.1,2296.7,2.49797356]
[1770151194190,0.00469801,2298.1,2296.7,2.49797356]
[1770151195189,0.22251801,2298.1,2296.7,2.28003356]
[1770151195693,0.21783,2298.0,2296.7,2.28003356]
[1770151196688,0.21777,2298.6,2296.9,2.45013733]
[1770151196991,0.21778,2298.5,2296.9,2.66806733]
[1770151197892,0.21781,2298.2,2296.9,2.45013733]
[1770151198390,0.00371334,2298.5,2296.9,2.66806733]
[1770151198989,0.00371334,2298.5,2297.1,2.45013733]
[1770151199193,0.21779,2298.4,2297.1,2.45013733]
[1770151199787,2.34668367,2299.4,2297.6,2.45013733]
[1770151200294,0.21776,2298.8,2297.6,2.45013733]
[1770151200693,0.21777,2298.6,2297.6,2.45013733]
[1770151200993,0.21782,2298.1,2297.2,2.45013733]
[1770151201189,0.21784,2297.9,2297.2,2.45013733]
[1770151201494,0.21784,2297.9,2296.7,2.45013733]
[1770151201691,2.34668367,2298.3,2296.7,2.45013733]
[1770151201897,0.21791,2297.2,2296.2,2.45013733]
[1770151202592,4.357,2297.7,2295.8,2.45013733]
[1770151202793,2.34668367,2297.3,2295.8,2.45013733]
[1770151203098,2.35217233,2298.6,2296.8,2.45513311]
[1770151203291,0.00548866,2298.6,2297.2,2.45013733]
[1770151203491,0.00548866,2298.6,2297.6,2.45013733]
[1770151203689,0.21778,2298.5,2297.6,2.45424165]
[1770151204090,0.00548866,2298.6,2297.8,2.45013733]
[1770151204893,0.22325866,2298.6,2297.6,2.45424165]
[1770151205093,0.21772,2299.2,2298.0,2.45513311]
[1770151205293,0.21772,2299.2,2298.0,2.45013733]
[1770151205496,0.21767,2299.7,2298.2,2.45013733]
[1770151205995,0.21771,2299.2,2298.1,2.45013733]
[1770151206498,0.21773,2299.1,2298.1,2.45013733]
[1770151206692,0.21773,2299.1,2298.0,4.357]
[1770151206893,0.00310164,2299.7,2298.1,2.45513311]
[1770151206894,2.56745531,2299.7,2298.1,2.45513311]
[1770151207092,2.56745531,2299.7,2298.1,2.45013733]
[1770151207395,0.21773,2299.0,2298.0,4.357]
[1770151207590,0.21773,2299.0,2297.7,2.45013733]
[1770151207796,0.21773,2299.0,2297.9,2.45013733]
[1770151207995,2.75902047,2300.2,2297.9,2.45013733]
[1770151207996,2.34668367,2301.6,2299.7,0.21766]
[1770151208189,2.34668367,2301.6,2299.2,2.45013733]
[1770151208190,0.21743,2302.2,2300.2,2.75902047]
[1770151208393,2.34668367,2303.0,2300.7,2.45013733]
[1770151208595,0.21739,2302.7,2300.9,2.45013733]
[1770151208793,2.34668367,2303.0,2301.1,2.45013733]
[1770151208995,0.00495217,2303.0,2301.5,2.45013733]
[1770151209192,0.00495217,2303.0,2301.7,2.45013733]
[1770151209903,2.35163584,2303.0,2301.7,2.45013733]
[1770151210598,2.34668367,2302.5,2301.1,0.00554394]
[1770151210803,2.34668367,2302.1,2300.4,2.45013733]
[1770151211103,4.354,2302.5,2299.6,2.45013733]
[1770151211104,0.21752,2301.3,2299.6,2.45013733]
[1770151211302,2.34668367,2301.9,2299.6,2.45013733]
[1770151211500,2.56414367,2301.9,2300.0,2.45013733]
[1770151211702,2.34668367,2301.9,2300.0,2.45013733]
[1770151212000,2.35047731,2301.9,2300.0,2.45549792]
[1770151212200,2.35047731,2301.9,2300.0,0.00536059]
[1770151212201,0.21755,2301.0,2300.0,0.00536059]
[1770151212403,0.21756,2300.8,2300.0,0.00536059]
[1770151212603,2.56424367,2300.8,2300.0,0.00536059]
[1770151212804,2.56424367,2300.8,2299.2,2.45013733]
[1770151212805,2.34668367,2300.8,2299.2,2.45013733]
[1770151213104,0.21761,2300.3,2299.2,2.45013733]
[1770151213301,0.21754,2301.0,2299.2,2.45013733]
[1770151213505,0.00379364,2301.9,2299.2,2.45013733]
[1770151213506,0.21749,2301.6,2299.6,2.45013733]
[1770151213696,0.00379364,2301.9,2300.1,2.45013733]
[1770151213900,2.35047731,2301.9,2300.1,2.45513311]
[1770151214096,0.00379364,2301.9,2300.4,2.45013733]
[1770151214296,0.21747,2301.8,2300.4,2.45013733]
[1770151214499,0.21749,2301.6,2300.4,2.45013733]
[1770151214704,0.21747,2301.8,2300.4,2.45013733]
[1770151214904,0.21747,2301.8,2300.4,2.45513311]
[1770151215200,0.21751,2301.4,2300.4,2.45013733]
[1770151215399,2.34668367,2301.2,2299.7,4.353]
[1770151215598,0.21756,2300.9,2299.6,0.00372271]
[1770151215804,0.21756,2300.9,2299.6,2.45386004]
[1770151216004,0.21749,2301.6,2299.7,2.45013733]
[1770151216200,6.69968367,2301.7,2299.9,2.45013733]
[1770151216400,4.353,2301.7,2300.3,2.45013733]
[1770151216600,4.353,2301.7,2299.8,2.45013733]
[1770151216601,2.34668367,2301.6,2299.8,2.45013733]
[1770151216899,0.21754,2301.1,2299.6,2.45386004]
[1770151217107,0.21754,2301.1,2299.9,2.45013733]
[1770151217305,2.34668367,2301.8,2300.1,2.45013733]
[1770151217498,0.00379364,2301.9,2300.1,2.45013733]
[1770151217803,0.00379364,2301.9,2300.6,2.45013733]
[1770151218201,0.00379364,2301.9,2300.7,0.00499578]
[1770151218705,2.35047731,2301.9,2300.6,2.45013733]
[1770151218905,0.21749,2301.6,2300.6,2.45013733]
[1770151219106,0.21749,2301.6,2300.6,2.45513311]
[1770151219307,0.00379364,2301.9,2301.1,0.00499578]
[1770151219507,0.00379364,2301.9,2300.9,0.00499578]
[1770151219707,0.22125364,2301.9,2300.9,0.00499578]
[1770151220408,0.22125364,2301.9,2300.9,2.45513311]
[1770151220614,0.21749,2301.6,2300.9,2.45513311]
[1770151220810,0.00379364,2301.9,2301.2,0.00499578]
[1770151221009,2.36023987,2302.7,2300.9,2.45013733]
[1770151221311,2.36023987,2302.9,2301.5,2.36353115]
[1770151221609,0.21742,2302.3,2301.5,2.36353115]
[1770151221809,2.36023987,2302.6,2300.5,2.36353115]
[1770151222202,0.21747,2301.8,2300.5,2.36841787]
[1770151222606,0.21747,2301.8,2300.7,0.00499578]
[1770151222812,2.36023987,2301.9,2300.5,2.36841787]
[1770151223009,0.21746,2301.9,2300.5,2.36841787]
[1770151223208,2.36023987,2302.3,2301.0,2.36852693]
[1770151223409,0.21748,2301.7,2300.6,2.36353115]
[1770151223609,0.21748,2301.7,2300.7,2.36353115]
[1770151223811,0.21747,2301.8,2300.8,0.00499578]
[1770151224009,0.21747,2301.8,2300.7,2.36353115]
[1770151224309,0.00316513,2302.6,2300.7,2.36353115]
[1770151224310,2.36023987,2302.1,2300.7,2.36353115]
[1770151224510,0.21753,2301.1,2300.5,0.00488672]
[1770151224910,0.21753,2301.1,2298.7,4.9037335]
[1770151224911,2.36023987,2301.6,2298.9,4.35]
[1770151225114,0.21758,2300.6,2299.0,2.36353115]
[1770151225414,0.21761,2300.3,2299.0,2.36353115]
[1770151225614,2.57780987,2300.7,2299.0,2.36353115]
[1770151225816,2.57780987,2300.7,2299.2,2.36852693]
[1770151226009,0.21758,2300.6,2299.2,2.3739645]
[1770151226211,2.36423603,2300.7,2299.2,2.36896872]
[1770151226708,0.2176,2300.4,2299.2,2.36896872]
[1770151226910,0.00399616,2300.7,2300.0,2.36353115]
[1770151227116,0.21754,2301.0,2300.0,2.36852693]
[1770151227315,0.21754,2301.0,2300.2,0.00499578]
[1770151227512,0.2175,2301.5,2300.0,2.36353115]
[1770151227813,2.36023987,2301.6,2300.2,2.36852693]